[Event "Titled Tuesday Blitz March 15 Early 2022"]
[White "Shtyka, Sergey"]
[Black "Thomas, Anysia"]
[WhiteFideId "4138465"]
[BlackFideId "670472"]
[WhiteElo "2014"]
[BlackElo "2002"]
[Result "1/2-1/2"]
[Round "07"]
[TimeControl "180+1"]
[Date "2022.03.15"]
[WhiteClock "0:00:02"]
[BlackClock "0:00:04"]

1. e4 {[%clk 0:02:57]}  c5 {[%clk 0:02:59]} 2. Nf3 {[%clk 0:02:57]}  g6 {[%clk 0:02:59]} 3. c3 {[%clk 0:02:56]}  d5 {[%clk 0:02:59]} 4. exd5 {[%clk 0:02:52]}  Qxd5 {[%clk 0:03:00]} 5. d4 {[%clk 0:02:52]}  Bg7 {[%clk 0:03:00]} 6. dxc5 {[%clk 0:02:51]}  Qxc5 {[%clk 0:03:00]} 7. Be3 {[%clk 0:02:49]}  Qc7 {[%clk 0:02:57]} 8. Bb5+ {[%clk 0:02:44]}  Nc6 {[%clk 0:02:57]} 9. O-O {[%clk 0:02:41]}  Nf6 {[%clk 0:02:56]} 10. Na3 {[%clk 0:02:36]}  O-O {[%clk 0:02:56]} 11. Nd4 {[%clk 0:02:23]}  Nxd4 {[%clk 0:02:38]} 12. Bxd4 {[%clk 0:02:22]}  a6 {[%clk 0:02:38]} 13. Be2 {[%clk 0:02:16]}  b5 {[%clk 0:02:34]} 14. Bf3 {[%clk 0:02:03]}  Bb7 {[%clk 0:02:28]} 15. Bxb7 {[%clk 0:01:58]}  Qxb7 {[%clk 0:02:28]} 16. Qe2 {[%clk 0:01:56]}  Rad8 {[%clk 0:02:23]} 17. Rfe1 {[%clk 0:01:52]}  Rfe8 {[%clk 0:02:18]} 18. Nc2 {[%clk 0:01:49]}  Qd5 {[%clk 0:01:51]} 19. Ne3 {[%clk 0:01:43]}  Qg5 {[%clk 0:01:46]} 20. a4 {[%clk 0:01:26]}  e5 {[%clk 0:01:44]} 21. Bb6 {[%clk 0:01:23]}  Rd6 {[%clk 0:01:33]} 22. a5 {[%clk 0:01:10]}  Nd7 {[%clk 0:01:01]} 23. Rad1 {[%clk 0:01:03]}  Ree6 {[%clk 0:00:51]} 24. Rxd6 {[%clk 0:01:01]}  Rxd6 {[%clk 0:00:50]} 25. Rd1 {[%clk 0:01:02]}  Bf8 {[%clk 0:00:43]} 26. Rxd6 {[%clk 0:01:00]}  Bxd6 {[%clk 0:00:44]} 27. Qd3 {[%clk 0:00:53]}  Qe7 {[%clk 0:00:37]} 28. Nd5 {[%clk 0:00:36]}  Qe6 {[%clk 0:00:37]} 29. g3 {[%clk 0:00:28]}  Nc5 {[%clk 0:00:32]} 30. Qd1 {[%clk 0:00:18]}  Kg7 {[%clk 0:00:30]} 31. Ne3 {[%clk 0:00:17]}  Na4 {[%clk 0:00:25]} 32. Qd2 {[%clk 0:00:13]}  Be7 {[%clk 0:00:18]} 33. Nd5 {[%clk 0:00:13]}  Bf6 {[%clk 0:00:16]} 34. b3 {[%clk 0:00:13]}  Nxb6 {[%clk 0:00:14]} 35. axb6 {[%clk 0:00:13]}  Qc6 {[%clk 0:00:08]} 36. Qd3 {[%clk 0:00:10]}  Bd8 {[%clk 0:00:07]} 37. c4 {[%clk 0:00:07]}  Bxb6 {[%clk 0:00:07]} 38. cxb5 {[%clk 0:00:07]}  Qc1+ {[%clk 0:00:06]} 39. Kg2 {[%clk 0:00:06]}  Bd4 {[%clk 0:00:06]} 40. bxa6 {[%clk 0:00:05]}  Qb2 {[%clk 0:00:05]} 41. Ne3 {[%clk 0:00:04]}  Qa2 {[%clk 0:00:04]} 42. h4 {[%clk 0:00:03]}  h5 {[%clk 0:00:03]} 43. Kg1 {[%clk 0:00:03]}  Qa1+ {[%clk 0:00:04]} 44. Kg2 {[%clk 0:00:03]}  Qa2 {[%clk 0:00:04]} 45. Kf3 {[%clk 0:00:02]}  Qa5 {[%clk 0:00:04]} 46. Kg2 {[%clk 0:00:02]}  Qa2 {[%clk 0:00:04]} 1/2-1/2


[Site "https://www.chess.com"]

[Event "Titled Tuesday Blitz March 15 Early 2022"]
[White "Slugin, Sergey"]
[Black "Szpar, Milosz"]
[WhiteFideId "4122569"]
[BlackFideId "1184989"]
[WhiteElo "2358"]
[BlackElo "2447"]
[Result "0-1"]
[Round "07"]
[TimeControl "180+1"]
[Date "2022.03.15"]
[WhiteClock "0:01:01"]
[BlackClock "0:02:21"]

1. e4 {[%clk 0:03:00]}  c5 {[%clk 0:02:55]} 2. Ne2 {[%clk 0:02:48]}  Nc6 {[%clk 0:02:55]} 3. Nbc3 {[%clk 0:02:48]}  d6 {[%clk 0:02:53]} 4. d4 {[%clk 0:02:49]}  cxd4 {[%clk 0:02:53]} 5. Nxd4 {[%clk 0:02:50]}  Nf6 {[%clk 0:02:53]} 6. Bg5 {[%clk 0:02:48]}  Bd7 {[%clk 0:02:52]} 7. Qd2 {[%clk 0:02:46]}  Rc8 {[%clk 0:02:51]} 8. f3 {[%clk 0:02:44]}  Qb6 {[%clk 0:02:49]} 9. O-O-O {[%clk 0:02:42]}  Nxd4 {[%clk 0:02:39]} 10. Qxd4 {[%clk 0:02:43]}  Qxd4 {[%clk 0:02:40]} 11. Rxd4 {[%clk 0:02:42]}  a6 {[%clk 0:02:41]} 12. Bc4 {[%clk 0:02:37]}  e5 {[%clk 0:02:38]} 13. Bxf7+ {[%clk 0:02:05]}  Kxf7 {[%clk 0:02:36]} 14. Rd3 {[%clk 0:02:03]}  Be6 {[%clk 0:02:33]} 15. Na4 {[%clk 0:01:40]}  b5 {[%clk 0:02:29]} 16. Nb6 {[%clk 0:01:38]}  Rb8 {[%clk 0:02:28]} 17. Nd5 {[%clk 0:01:36]}  Nxd5 {[%clk 0:02:28]} 18. exd5 {[%clk 0:01:36]}  Bf5 {[%clk 0:02:29]} 19. Rc3 {[%clk 0:01:36]}  Rc8 {[%clk 0:02:29]} 20. Rxc8 {[%clk 0:01:35]}  Bxc8 {[%clk 0:02:29]} 21. a4 {[%clk 0:01:33]}  Be7 {[%clk 0:02:27]} 22. Bxe7 {[%clk 0:01:32]}  Kxe7 {[%clk 0:02:28]} 23. axb5 {[%clk 0:01:32]}  axb5 {[%clk 0:02:29]} 24. Kd2 {[%clk 0:01:33]}  Bb7 {[%clk 0:02:29]} 25. Kc3 {[%clk 0:01:32]}  Bxd5 {[%clk 0:02:29]} 26. Kb4 {[%clk 0:01:32]}  Rc8 {[%clk 0:02:29]} 27. c3 {[%clk 0:01:31]}  Rc5 {[%clk 0:02:27]} 28. Ra1 {[%clk 0:01:27]}  Bc6 {[%clk 0:02:27]} 29. Ra7+ {[%clk 0:01:26]}  Kf6 {[%clk 0:02:27]} 30. b3 {[%clk 0:01:27]}  e4 {[%clk 0:02:25]} 31. fxe4 {[%clk 0:01:23]}  Bxe4 {[%clk 0:02:25]} 32. g3 {[%clk 0:01:19]}  g5 {[%clk 0:02:26]} 33. Rd7 {[%clk 0:01:05]}  Ke6 {[%clk 0:02:25]} 34. Rd8 {[%clk 0:01:05]}  Re5 {[%clk 0:02:22]} 35. Re8+ {[%clk 0:01:03]}  Kf5 {[%clk 0:02:23]} 36. Rxe5+ {[%clk 0:01:01]}  dxe5 {[%clk 0:02:22]} 37. Kxb5 {[%clk 0:01:01]}  Bc2 {[%clk 0:02:21]} 38. b4 {[%clk 0:01:01]}  e4 {[%clk 0:02:21]} 0-1


[Site "https://www.chess.com"]

[Event "Titled Tuesday Blitz March 15 Early 2022"]
[White "Srihari L R"]
[Black "Andreikin, Dmitry"]
[WhiteFideId "46617116"]
[BlackFideId "4158814"]
[WhiteElo "2121"]
[BlackElo "2736"]
[Result "0-1"]
[Round "07"]
[TimeControl "180+1"]
[Date "2022.03.15"]
[WhiteClock "0:00:19"]
[BlackClock "0:01:08"]

1. d4 {[%clk 0:02:54]}  Nf6 {[%clk 0:02:59]} 2. c4 {[%clk 0:02:53]}  e6 {[%clk 0:02:59]} 3. Nf3 {[%clk 0:02:51]}  d5 {[%clk 0:02:59]} 4. Nc3 {[%clk 0:02:49]}  c6 {[%clk 0:02:57]} 5. e3 {[%clk 0:02:46]}  Nbd7 {[%clk 0:02:56]} 6. Qc2 {[%clk 0:02:45]}  Bd6 {[%clk 0:02:56]} 7. Bd3 {[%clk 0:02:42]}  O-O {[%clk 0:02:55]} 8. O-O {[%clk 0:02:39]}  dxc4 {[%clk 0:02:55]} 9. Bxc4 {[%clk 0:02:39]}  b5 {[%clk 0:02:56]} 10. Bd3 {[%clk 0:02:35]}  Bb7 {[%clk 0:02:56]} 11. Ne4 {[%clk 0:02:28]}  Nxe4 {[%clk 0:02:55]} 12. Bxe4 {[%clk 0:02:29]}  Nf6 {[%clk 0:02:55]} 13. Bd3 {[%clk 0:02:28]}  Rc8 {[%clk 0:02:54]} 14. e4 {[%clk 0:02:27]}  Be7 {[%clk 0:02:35]} 15. Qe2 {[%clk 0:02:24]}  c5 {[%clk 0:02:29]} 16. dxc5 {[%clk 0:02:21]}  Bxc5 {[%clk 0:02:26]} 17. e5 {[%clk 0:02:20]}  Nd5 {[%clk 0:02:23]} 18. Bxh7+ {[%clk 0:01:51]}  Kxh7 {[%clk 0:02:21]} 19. Ng5+ {[%clk 0:01:51]}  Kg8 {[%clk 0:02:21]} 20. Qh5 {[%clk 0:01:50]}  Nf6 {[%clk 0:02:22]} 21. exf6 {[%clk 0:01:47]}  Qd3 {[%clk 0:02:23]} 22. fxg7 {[%clk 0:01:38]}  Kxg7 {[%clk 0:02:23]} 23. Nxe6+ {[%clk 0:01:06]}  fxe6 {[%clk 0:02:24]} 24. Bh6+ {[%clk 0:01:06]}  Kf6 {[%clk 0:02:24]} 25. Qg5+ {[%clk 0:01:04]}  Kf7 {[%clk 0:02:24]} 26. Qg7+ {[%clk 0:01:03]}  Ke8 {[%clk 0:02:25]} 27. Qxb7 {[%clk 0:01:01]}  Rd8 {[%clk 0:02:17]} 28. Bxf8 {[%clk 0:00:58]}  Kxf8 {[%clk 0:02:16]} 29. Qf3+ {[%clk 0:00:53]}  Qxf3 {[%clk 0:02:17]} 30. gxf3 {[%clk 0:00:54]}  Rd2 {[%clk 0:02:17]} 31. a4 {[%clk 0:00:45]}  bxa4 {[%clk 0:02:07]} 32. Rxa4 {[%clk 0:00:44]}  Rxb2 {[%clk 0:02:07]} 33. h4 {[%clk 0:00:36]}  Kg7 {[%clk 0:02:05]} 34. Rg4+ {[%clk 0:00:35]}  Kh6 {[%clk 0:02:02]} 35. Rg2 {[%clk 0:00:31]}  a5 {[%clk 0:01:56]} 36. Re1 {[%clk 0:00:30]}  Rb6 {[%clk 0:01:47]} 37. h5 {[%clk 0:00:29]}  Bd4 {[%clk 0:01:32]} 38. Rg6+ {[%clk 0:00:28]}  Kxh5 {[%clk 0:01:31]} 39. Rgxe6 {[%clk 0:00:24]}  Rb2 {[%clk 0:01:31]} 40. R1e2 {[%clk 0:00:24]}  Rb4 {[%clk 0:01:24]} 41. R6e4 {[%clk 0:00:21]}  Kg6 {[%clk 0:01:11]} 42. Kg2 {[%clk 0:00:20]}  Kf5 {[%clk 0:01:07]} 43. Rd2 {[%clk 0:00:20]}  Bc3 {[%clk 0:01:07]} 44. Rd5+ {[%clk 0:00:19]}  Kf6 {[%clk 0:01:06]} 45. Rxb4 {[%clk 0:00:19]}  axb4 {[%clk 0:01:06]} 46. Rb5 {[%clk 0:00:20]}  Ke6 {[%clk 0:01:07]} 47. f4 {[%clk 0:00:20]}  Kd6 {[%clk 0:01:07]} 48. Kf3 {[%clk 0:00:20]}  Kc6 {[%clk 0:01:08]} 49. Rd5 {[%clk 0:00:19]}  Kxd5 {[%clk 0:01:08]} 0-1


[Site "https://www.chess.com"]

[Event "Titled Tuesday Blitz March 15 Early 2022"]
[White "Weetik, Vjacheslav"]
[Black "Pourkashiyan, Atousa"]
[WhiteFideId "4153472"]
[BlackFideId "12502014"]
[WhiteElo "2469"]
[BlackElo "2247"]
[Result "0-1"]
[Round "07"]
[TimeControl "180+1"]
[Date "2022.03.15"]
[WhiteClock "0:00:07"]
[BlackClock "0:00:05"]

1. d4 {[%clk 0:02:55]}  Nf6 {[%clk 0:02:46]} 2. Bf4 {[%clk 0:02:55]}  d5 {[%clk 0:02:45]} 3. e3 {[%clk 0:02:55]}  c5 {[%clk 0:02:38]} 4. c3 {[%clk 0:02:54]}  Nc6 {[%clk 0:02:37]} 5. Nd2 {[%clk 0:02:54]}  Bf5 {[%clk 0:02:36]} 6. Ngf3 {[%clk 0:02:54]}  e6 {[%clk 0:02:36]} 7. Nh4 {[%clk 0:02:54]}  Bd6 {[%clk 0:02:34]} 8. Nxf5 {[%clk 0:02:51]}  exf5 {[%clk 0:02:35]} 9. Bxd6 {[%clk 0:02:48]}  Qxd6 {[%clk 0:02:36]} 10. dxc5 {[%clk 0:02:48]}  Qxc5 {[%clk 0:02:36]} 11. Nb3 {[%clk 0:02:40]}  Qb6 {[%clk 0:02:34]} 12. Be2 {[%clk 0:02:32]}  O-O {[%clk 0:02:32]} 13. O-O {[%clk 0:02:32]}  Rad8 {[%clk 0:02:32]} 14. Qc2 {[%clk 0:02:28]}  g6 {[%clk 0:02:32]} 15. Rad1 {[%clk 0:02:27]}  Ne5 {[%clk 0:02:32]} 16. h3 {[%clk 0:02:17]}  Rfe8 {[%clk 0:02:31]} 17. Nd4 {[%clk 0:02:09]}  Nc4 {[%clk 0:02:30]} 18. Qb3 {[%clk 0:01:48]}  Nxb2 {[%clk 0:02:15]} 19. Rb1 {[%clk 0:01:46]}  Nc4 {[%clk 0:02:14]} 20. Bxc4 {[%clk 0:01:46]}  dxc4 {[%clk 0:02:14]} 21. Qxc4 {[%clk 0:01:21]}  Qa6 {[%clk 0:01:55]} 22. Qxa6 {[%clk 0:01:20]}  bxa6 {[%clk 0:01:56]} 23. Rb7 {[%clk 0:01:15]}  Rd7 {[%clk 0:01:52]} 24. Rfb1 {[%clk 0:01:12]}  Rc8 {[%clk 0:01:45]} 25. Rxd7 {[%clk 0:01:09]}  Nxd7 {[%clk 0:01:46]} 26. Rb7 {[%clk 0:01:09]}  Ne5 {[%clk 0:01:30]} 27. Rxa7 {[%clk 0:01:07]}  Rxc3 {[%clk 0:01:30]} 28. Rxa6 {[%clk 0:01:07]}  Nd3 {[%clk 0:01:22]} 29. Rc6 {[%clk 0:00:29]}  Ra3 {[%clk 0:01:15]} 30. Rc2 {[%clk 0:00:29]}  Nb4 {[%clk 0:01:15]} 31. Rc8+ {[%clk 0:00:26]}  Kg7 {[%clk 0:01:15]} 32. Rc7 {[%clk 0:00:26]}  Rxa2 {[%clk 0:01:09]} 33. Ne6+ {[%clk 0:00:25]}  Kf6 {[%clk 0:01:08]} 34. Nd8 {[%clk 0:00:26]}  g5 {[%clk 0:00:35]} 35. Rxf7+ {[%clk 0:00:23]}  Kg6 {[%clk 0:00:35]} 36. Rd7 {[%clk 0:00:22]}  Ra1+ {[%clk 0:00:27]} 37. Kh2 {[%clk 0:00:22]}  Ra2 {[%clk 0:00:27]} 38. Kg3 {[%clk 0:00:20]}  Ra3 {[%clk 0:00:24]} 39. Kh2 {[%clk 0:00:13]}  Ra6 {[%clk 0:00:20]} 40. g4 {[%clk 0:00:13]}  fxg4 {[%clk 0:00:15]} 41. hxg4 {[%clk 0:00:13]}  Nc2 {[%clk 0:00:12]} 42. Nf7 {[%clk 0:00:11]}  Rf6 {[%clk 0:00:09]} 43. Ne5+ {[%clk 0:00:10]}  Kh6 {[%clk 0:00:10]} 44. Kg3 {[%clk 0:00:10]}  Ne1 {[%clk 0:00:10]} 45. f4 {[%clk 0:00:10]}  Nc2 {[%clk 0:00:08]} 46. Nf7+ {[%clk 0:00:10]}  Kg6 {[%clk 0:00:08]} 47. f5+ {[%clk 0:00:09]}  Kg7 {[%clk 0:00:07]} 48. Nxg5+ {[%clk 0:00:10]}  Kg8 {[%clk 0:00:07]} 49. e4 {[%clk 0:00:09]}  Rb6 {[%clk 0:00:07]} 50. e5 {[%clk 0:00:09]}  Rb3+ {[%clk 0:00:06]} 51. Kf4 {[%clk 0:00:06]}  Rb4+ {[%clk 0:00:06]} 52. Kg3 {[%clk 0:00:06]}  Rb3+ {[%clk 0:00:07]} 53. Kh4 {[%clk 0:00:07]}  Ne1 {[%clk 0:00:06]} 54. Ne6 {[%clk 0:00:07]}  Nf3+ {[%clk 0:00:06]} 55. Kh5 {[%clk 0:00:07]}  Rb1 {[%clk 0:00:05]} 56. g5 {[%clk 0:00:06]}  Rh1+ {[%clk 0:00:05]} 57. Kg4 {[%clk 0:00:06]}  Nxe5+ {[%clk 0:00:05]} 58. Kg3 {[%clk 0:00:04]}  Nxd7 {[%clk 0:00:06]} 59. Kg2 {[%clk 0:00:04]}  Rh5 {[%clk 0:00:06]} 60. Kg3 {[%clk 0:00:04]}  Rh1 {[%clk 0:00:06]} 61. Kg4 {[%clk 0:00:04]}  Ra1 {[%clk 0:00:06]} 62. Kf4 {[%clk 0:00:05]}  Nf8 {[%clk 0:00:07]} 63. Nd4 {[%clk 0:00:05]}  Ra4 {[%clk 0:00:07]} 64. Ke5 {[%clk 0:00:05]}  Nd7+ {[%clk 0:00:07]} 65. Kd5 {[%clk 0:00:06]}  Nb6+ {[%clk 0:00:08]} 66. Ke5 {[%clk 0:00:07]}  Nd7+ {[%clk 0:00:08]} 67. Kd5 {[%clk 0:00:07]}  Ra5+ {[%clk 0:00:08]} 68. Ke6 {[%clk 0:00:07]}  Nc5+ {[%clk 0:00:08]} 69. Ke7 {[%clk 0:00:07]}  Ra7+ {[%clk 0:00:07]} 70. Kd6 {[%clk 0:00:08]}  Ne4+ {[%clk 0:00:07]} 71. Ke5 {[%clk 0:00:08]}  Nxg5 {[%clk 0:00:08]} 72. Kf6 {[%clk 0:00:09]}  Ne4+ {[%clk 0:00:08]} 73. Ke5 {[%clk 0:00:09]}  Nc5 {[%clk 0:00:08]} 74. Kd5 {[%clk 0:00:09]}  Nd3 {[%clk 0:00:08]} 75. Ke4 {[%clk 0:00:10]}  Nb4 {[%clk 0:00:08]} 76. Ke5 {[%clk 0:00:09]}  h5 {[%clk 0:00:09]} 77. f6 {[%clk 0:00:09]}  h4 {[%clk 0:00:09]} 78. Nf5 {[%clk 0:00:08]}  h3 {[%clk 0:00:09]} 79. Nh6+ {[%clk 0:00:08]}  Kh7 {[%clk 0:00:08]} 80. f7 {[%clk 0:00:08]}  Ra8 {[%clk 0:00:06]} 81. Ng4 {[%clk 0:00:08]}  Kg6 {[%clk 0:00:05]} 82. Ke6 {[%clk 0:00:08]}  Nd3 {[%clk 0:00:05]} 83. Ke7 {[%clk 0:00:08]}  Ra7+ {[%clk 0:00:05]} 84. Ke6 {[%clk 0:00:07]}  Rxf7 {[%clk 0:00:05]} 0-1


[Site "https://www.chess.com"]

[Event "Titled Tuesday Blitz March 15 Early 2022"]
[White "Xie, Bryan"]
[Black "Manukyan, Artyom"]
[WhiteFideId "30941296"]
[BlackFideId "13305786"]
[WhiteElo "1899"]
[BlackElo "2034"]
[Result "1-0"]
[Round "07"]
[TimeControl "180+1"]
[Date "2022.03.15"]
[WhiteClock "0:00:02"]
[BlackClock "0:00:02"]

1. e4 {[%clk 0:02:59]}  e6 {[%clk 0:02:57]} 2. d4 {[%clk 0:02:59]}  d5 {[%clk 0:02:55]} 3. Nc3 {[%clk 0:03:00]}  Nf6 {[%clk 0:02:53]} 4. e5 {[%clk 0:03:00]}  Nfd7 {[%clk 0:02:54]} 5. f4 {[%clk 0:03:01]}  c5 {[%clk 0:02:54]} 6. Nf3 {[%clk 0:03:02]}  Nc6 {[%clk 0:02:54]} 7. Be3 {[%clk 0:03:02]}  a6 {[%clk 0:02:54]} 8. Qd2 {[%clk 0:03:03]}  b5 {[%clk 0:02:53]} 9. Qf2 {[%clk 0:03:02]}  b4 {[%clk 0:02:50]} 10. Ne2 {[%clk 0:03:01]}  c4 {[%clk 0:02:18]} 11. c3 {[%clk 0:02:58]}  a5 {[%clk 0:02:18]} 12. g4 {[%clk 0:02:54]}  a4 {[%clk 0:02:17]} 13. f5 {[%clk 0:02:52]}  Be7 {[%clk 0:02:13]} 14. Bh3 {[%clk 0:02:45]}  a3 {[%clk 0:02:04]} 15. bxa3 {[%clk 0:02:40]}  bxc3 {[%clk 0:02:04]} 16. Nf4 {[%clk 0:02:20]}  Nf8 {[%clk 0:01:59]} 17. Nh5 {[%clk 0:02:03]}  g6 {[%clk 0:01:49]} 18. Ng7+ {[%clk 0:01:54]}  Kd7 {[%clk 0:01:47]} 19. f6 {[%clk 0:01:47]}  Bxa3 {[%clk 0:01:46]} 20. Ng5 {[%clk 0:01:48]}  Qa5 {[%clk 0:01:33]} 21. Nxf7 {[%clk 0:01:34]}  Bb2 {[%clk 0:01:06]} 22. O-O {[%clk 0:01:22]}  Rg8 {[%clk 0:00:43]} 23. Nh6 {[%clk 0:01:02]}  Rh8 {[%clk 0:00:41]} 24. Nf7 {[%clk 0:00:58]}  Rg8 {[%clk 0:00:39]} 25. Rab1 {[%clk 0:00:46]}  Nd8 {[%clk 0:00:21]} 26. Nxd8 {[%clk 0:00:46]}  Qxd8 {[%clk 0:00:22]} 27. g5 {[%clk 0:00:43]}  Rxa2 {[%clk 0:00:17]} 28. Bc1 {[%clk 0:00:17]}  Qb6 {[%clk 0:00:14]} 29. Be3 {[%clk 0:00:10]}  Kc6 {[%clk 0:00:06]} 30. Qh4 {[%clk 0:00:07]}  c2 {[%clk 0:00:05]} 31. Rbe1 {[%clk 0:00:06]}  Bd7 {[%clk 0:00:02]} 32. Qh6 {[%clk 0:00:03]}  Bxd4 {[%clk 0:00:02]} 33. Bxd4 {[%clk 0:00:03]}  Qxd4+ {[%clk 0:00:03]} 34. Kh1 {[%clk 0:00:03]}  c1=Q {[%clk 0:00:02]} 35. Rxc1 {[%clk 0:00:03]}  Qe4+ {[%clk 0:00:03]} 36. Bg2 {[%clk 0:00:04]}  Qe3 {[%clk 0:00:03]} 37. f7 {[%clk 0:00:03]}  Rh8 {[%clk 0:00:03]} 38. Rxc4+ {[%clk 0:00:03]}  Kb5 {[%clk 0:00:02]} 39. Rc7 {[%clk 0:00:03]}  Qe2 {[%clk 0:00:02]} 40. Rb1+ {[%clk 0:00:03]}  Ka6 {[%clk 0:00:02]} 41. Qh3 {[%clk 0:00:02]} 1-0


[Site "https://www.chess.com"]

[Event "Titled Tuesday Blitz March 15 Early 2022"]
[White "Xiong, Jeffery"]
[Black "Bryakin, Mikhail"]
[WhiteFideId "2047640"]
[BlackFideId "4165314"]
[WhiteElo "2727"]
[BlackElo "2417"]
[Result "1-0"]
[Round "07"]
[TimeControl "180+1"]
[Date "2022.03.15"]
[WhiteClock "0:00:47"]
[BlackClock "0:00:18"]

1. e4 {[%clk 0:02:52]}  e6 {[%clk 0:02:42]} 2. d4 {[%clk 0:02:49]}  d5 {[%clk 0:02:39]} 3. e5 {[%clk 0:02:48]}  c5 {[%clk 0:02:37]} 4. c3 {[%clk 0:02:47]}  Nc6 {[%clk 0:02:36]} 5. Nf3 {[%clk 0:02:47]}  Qb6 {[%clk 0:02:32]} 6. Be2 {[%clk 0:02:47]}  Bd7 {[%clk 0:02:30]} 7. O-O {[%clk 0:02:44]}  Nge7 {[%clk 0:02:14]} 8. Na3 {[%clk 0:02:42]}  Ng6 {[%clk 0:02:12]} 9. Nc2 {[%clk 0:02:38]}  Be7 {[%clk 0:02:10]} 10. g3 {[%clk 0:02:38]}  O-O {[%clk 0:02:07]} 11. h4 {[%clk 0:02:37]}  f6 {[%clk 0:02:06]} 12. h5 {[%clk 0:02:37]}  Nh8 {[%clk 0:02:07]} 13. h6 {[%clk 0:02:31]}  fxe5 {[%clk 0:02:06]} 14. hxg7 {[%clk 0:02:31]}  Kxg7 {[%clk 0:02:07]} 15. dxe5 {[%clk 0:02:26]}  Ng6 {[%clk 0:02:07]} 16. Kg2 {[%clk 0:02:21]}  Ncxe5 {[%clk 0:02:07]} 17. Rh1 {[%clk 0:02:19]}  Kg8 {[%clk 0:02:05]} 18. Nxe5 {[%clk 0:02:06]}  Nxe5 {[%clk 0:02:05]} 19. Rh5 {[%clk 0:02:07]}  Ng6 {[%clk 0:02:03]} 20. Bd3 {[%clk 0:02:04]}  Be8 {[%clk 0:01:59]} 21. Rxh7 {[%clk 0:01:49]}  Kxh7 {[%clk 0:01:49]} 22. Qh5+ {[%clk 0:01:48]}  Kg8 {[%clk 0:01:30]} 23. Bxg6 {[%clk 0:01:46]}  Rf7 {[%clk 0:01:30]} 24. Bf4 {[%clk 0:01:39]}  Bf6 {[%clk 0:01:25]} 25. Rh1 {[%clk 0:01:23]}  Kf8 {[%clk 0:01:25]} 26. Ne3 {[%clk 0:01:16]}  Ke7 {[%clk 0:01:17]} 27. Re1 {[%clk 0:00:53]}  Qc6 {[%clk 0:00:24]} 28. Nf5+ {[%clk 0:00:52]}  Kf8 {[%clk 0:00:20]} 29. Bd6+ {[%clk 0:00:51]}  Kg8 {[%clk 0:00:19]} 30. Nh6+ {[%clk 0:00:47]}  Kg7 {[%clk 0:00:18]} 31. Nxf7 {[%clk 0:00:47]} 1-0


[Site "https://www.chess.com"]

[Event "Titled Tuesday Blitz March 15 Early 2022"]
[White "Zheenbekov, Nurgazy"]
[Black "Winkels, Marcel"]
[WhiteFideId "13800485"]
[BlackFideId "1003887"]
[WhiteElo "1959"]
[BlackElo "1900"]
[Result "1/2-1/2"]
[Round "07"]
[TimeControl "180+1"]
[Date "2022.03.15"]
[WhiteClock "0:00:23"]
[BlackClock "0:00:07"]

1. e4 {[%clk 0:02:58]}  c5 {[%clk 0:02:58]} 2. Nf3 {[%clk 0:02:58]}  d6 {[%clk 0:02:59]} 3. Bb5+ {[%clk 0:02:58]}  Nd7 {[%clk 0:02:58]} 4. O-O {[%clk 0:02:57]}  a6 {[%clk 0:02:57]} 5. Be2 {[%clk 0:02:57]}  Ngf6 {[%clk 0:02:56]} 6. d3 {[%clk 0:02:57]}  g6 {[%clk 0:02:53]} 7. c3 {[%clk 0:02:55]}  Bg7 {[%clk 0:02:53]} 8. Re1 {[%clk 0:02:55]}  O-O {[%clk 0:02:52]} 9. Bf1 {[%clk 0:02:55]}  b5 {[%clk 0:02:52]} 10. a4 {[%clk 0:02:54]}  Bb7 {[%clk 0:02:49]} 11. g3 {[%clk 0:02:48]}  Qc7 {[%clk 0:02:38]} 12. Bg2 {[%clk 0:02:48]}  Bc6 {[%clk 0:02:31]} 13. a5 {[%clk 0:02:46]}  b4 {[%clk 0:02:27]} 14. Nbd2 {[%clk 0:02:45]}  bxc3 {[%clk 0:02:26]} 15. bxc3 {[%clk 0:02:45]}  Rab8 {[%clk 0:02:24]} 16. d4 {[%clk 0:02:45]}  cxd4 {[%clk 0:02:19]} 17. cxd4 {[%clk 0:02:45]}  Rfc8 {[%clk 0:02:13]} 18. Ba3 {[%clk 0:02:45]}  Ba8 {[%clk 0:02:03]} 19. Qe2 {[%clk 0:02:31]}  e5 {[%clk 0:01:44]} 20. dxe5 {[%clk 0:02:22]}  Nxe5 {[%clk 0:01:42]} 21. Nxe5 {[%clk 0:02:17]}  dxe5 {[%clk 0:01:41]} 22. Qxa6 {[%clk 0:02:16]}  Qd7 {[%clk 0:01:29]} 23. Nc4 {[%clk 0:02:04]}  Qd3 {[%clk 0:01:25]} 24. Bf1 {[%clk 0:02:04]}  Qd4 {[%clk 0:01:23]} 25. Nb6 {[%clk 0:01:57]}  Rd8 {[%clk 0:01:16]} 26. Be7 {[%clk 0:01:37]}  Re8 {[%clk 0:01:08]} 27. Rad1 {[%clk 0:01:35]}  Qc3 {[%clk 0:01:04]} 28. Bxf6 {[%clk 0:01:35]}  Bxf6 {[%clk 0:01:04]} 29. Nd7 {[%clk 0:01:34]}  Bg5 {[%clk 0:00:52]} 30. Nxb8 {[%clk 0:01:28]}  Rxb8 {[%clk 0:00:51]} 31. Qa7 {[%clk 0:01:10]}  Qb2 {[%clk 0:00:48]} 32. a6 {[%clk 0:01:09]}  Rc8 {[%clk 0:00:37]} 33. Rb1 {[%clk 0:00:59]}  Qc3 {[%clk 0:00:30]} 34. Rb8 {[%clk 0:00:51]}  Rxb8 {[%clk 0:00:25]} 35. Qxb8+ {[%clk 0:00:51]}  Kg7 {[%clk 0:00:23]} 36. Qxa8 {[%clk 0:00:41]}  Qxe1 {[%clk 0:00:22]} 37. a7 {[%clk 0:00:41]}  Be3 {[%clk 0:00:19]} 38. fxe3 {[%clk 0:00:38]}  Qxe3+ {[%clk 0:00:19]} 39. Kg2 {[%clk 0:00:38]}  Qd2+ {[%clk 0:00:18]} 40. Kf3 {[%clk 0:00:38]}  Qc3+ {[%clk 0:00:17]} 41. Kg2 {[%clk 0:00:38]}  Qd2+ {[%clk 0:00:17]} 42. Kh1 {[%clk 0:00:37]}  Qf2 {[%clk 0:00:16]} 43. Bc4 {[%clk 0:00:27]}  Qf3+ {[%clk 0:00:15]} 44. Kg1 {[%clk 0:00:27]}  Qe3+ {[%clk 0:00:15]} 45. Kf1 {[%clk 0:00:27]}  Qc1+ {[%clk 0:00:14]} 46. Kf2 {[%clk 0:00:27]}  Qxc4 {[%clk 0:00:13]} 47. Qb8 {[%clk 0:00:25]}  Qc2+ {[%clk 0:00:12]} 48. Ke3 {[%clk 0:00:25]}  Qc3+ {[%clk 0:00:12]} 49. Ke2 {[%clk 0:00:25]}  Qc2+ {[%clk 0:00:12]} 50. Kf3 {[%clk 0:00:24]}  Qd3+ {[%clk 0:00:11]} 51. Kf2 {[%clk 0:00:25]}  Qd2+ {[%clk 0:00:07]} 52. Kf3 {[%clk 0:00:25]}  Qd3+ {[%clk 0:00:07]} 53. Kf2 {[%clk 0:00:25]}  Qd2+ {[%clk 0:00:08]} 54. Kf1 {[%clk 0:00:24]}  Qd1+ {[%clk 0:00:07]} 55. Kf2 {[%clk 0:00:23]}  Qd2+ {[%clk 0:00:07]} 1/2-1/2


[Site "https://www.chess.com"]